bitfinex/quotes_ETHUSD_20240811
["timestamp","ask_amount","ask_price","bid_price","bid_amount"]
[1723351920576,2.63921,2652.3,2652.1,2.4005]
[1723351920747,2.63903,2652.5,2652.1,2.4005]
[1723351922368,2.63903,2652.5,2652.1,2.6896363]
[1723351922620,5.55,2652.6,2652.2,0.07540495]
[1723351922752,5.55,2652.6,2652.3,2.2529]
[1723351922952,5.27775,2652.7,2652.3,2.2529]
[1723351923891,2.63899,2652.6,2652.3,2.2529]
[1723351924076,2.63902,2652.5,2652.3,2.2529]
[1723351924282,2.63911,2652.4,2652.3,2.2529]
[1723351924517,2.63911,2652.4,2651.8,2.2529]
[1723351924655,2.63911,2652.4,2651.8,5.420562]
[1723351924855,2.63902,2652.5,2651.9,2.2529]
[1723351925499,2.63902,2652.5,2652.0,2.32830506]
[1723351925661,2.63902,2652.5,2652.1,0.23283051]
[1723351926206,2.63902,2652.5,2652.2,2.2529]
[1723351927013,2.63902,2652.5,2651.9,2.2529]
[1723351927170,2.63921,2652.3,2651.9,2.2529]
[1723351929773,2.63948,2652.1,2651.9,2.2529]
[1723351931077,2.63951,2652.0,2651.9,2.2529]
[1723351931272,2.63948,2652.1,2651.9,2.2529]
[1723351931460,2.63922,2652.3,2651.9,2.2529]
[1723351933096,2.63936,2652.2,2651.9,2.2529]
[1723351933348,2.63943,2652.1,2651.9,2.2529]
[1723351933835,2.63932,2652.2,2651.9,2.2529]
[1723351935538,2.63942,2652.1,2651.9,2.2529]
[1723351940141,2.63922,2652.3,2651.9,2.2529]
[1723351940345,2.63933,2652.2,2651.9,2.2529]
[1723351940852,5.27851,2652.3,2651.9,2.2529]
[1723351941056,2.63933,2652.2,2651.9,2.2529]
[1723351941843,3.75933,2652.2,2651.9,2.2529]
[1723351942145,2.63947,2652.1,2651.9,2.2529]
[1723351944353,3.75951,2652.0,2651.9,2.2529]
[1723351944576,3.75951,2652.0,2651.3,2.4628]
[1723351944577,1.759898,2652.0,2651.3,2.4628]
[1723351944776,1.759898,2652.0,2651.2,2.64023]
[1723351944777,2.63962,2651.9,2651.4,5.10289]
[1723351944923,2.63962,2651.9,2651.4,5.877202]
[1723351948776,2.63962,2651.9,2651.4,2.4628]
[1723351948976,2.64008,2651.5,2651.1,2.4628]
[1723351949192,2.64024,2651.3,2651.1,2.4628]
[1723351949624,2.64037,2651.2,2650.7,2.4628]
[1723351949936,2.64037,2651.2,2650.7,2.838884]
[1723351950074,3.76037,2651.2,2650.7,2.4628]
[1723351950276,2.3362,2651.4,2650.7,2.4628]
[1723351950277,6.40118,2651.0,2650.7,2.4628]
[1723351950474,1.12,2651.0,2650.7,2.4628]
[1723351950675,3.76036,2651.2,2650.7,2.4628]
[1723351951275,6.40076,2651.2,2650.7,2.4628]
[1723351951674,2.64043,2651.1,2650.7,2.4628]
[1723351952319,2.64053,2651.0,2650.7,2.4628]
[1723351952524,2.64053,2651.0,2650.4,2.4628]
[1723351952819,2.64089,2650.7,2650.4,2.4628]
[1723351956533,4.97677,2651.0,2650.4,2.4628]
[1723351956734,2.64064,2650.9,2650.4,2.4628]
[1723351956943,2.64057,2651.0,2650.4,5.10386]
[1723351957750,5.28118,2651.0,2650.4,5.10386]
[1723351958045,2.64062,2650.9,2650.4,2.4628]
[1723351962843,2.64073,2650.8,2650.4,2.4628]
[1723351963081,2.64083,2650.7,2650.4,2.4628]
[1723351963267,2.64091,2650.6,2650.4,2.4628]
[1723351964784,2.64083,2650.7,2650.4,2.4628]
[1723351965260,5.28173,2650.7,2650.4,2.4628]
[1723351965448,2.64083,2650.7,2650.4,2.4628]
[1723351966253,2.64092,2650.6,2650.4,2.4628]
[1723351967381,2.64083,2650.7,2650.0,5.04568]
[1723351967576,2.64083,2650.7,2650.1,2.64139]
[1723351969395,2.64083,2650.7,2650.0,2.668353]
[1723351970794,2.64123,2650.3,2650.0,2.4042]
[1723351971657,2.64133,2650.2,2650.0,2.4042]
[1723351971882,2.64094,2650.6,2650.0,5.04568]
[1723351972059,2.64094,2650.6,2650.1,2.4042]
[1723351973053,2.64104,2650.5,2650.1,2.4042]
[1723351974387,2.64088,2650.7,2649.8,2.4042]
[1723351974388,1.121,2650.4,2649.8,2.4042]
[1723351974698,2.64131,2650.2,2649.8,2.4042]
[1723351976078,2.64118,2650.4,2649.8,2.4042]
[1723351976272,2.64118,2650.4,2649.8,5.04584]
[1723351976467,5.28237,2650.4,2649.8,5.814604]
[1723351976665,2.64118,2650.4,2649.8,5.814604]
[1723351976893,5.28237,2650.4,2649.8,5.814604]
[1723351977313,2.64138,2650.2,2649.8,3.172964]
[1723351977614,2.64138,2650.2,2649.8,2.4042]
[1723351981620,2.64153,2650.0,2649.8,2.4042]
[1723351982516,2.64171,2649.8,2649.5,2.4439]
[1723351985842,5.28313,2650.0,2649.5,2.4439]
[1723351986441,2.64155,2650.0,2649.5,2.4439]
[1723351987626,5.28313,2650.0,2649.5,2.4439]
[1723351987828,2.6417,2649.9,2649.5,2.4439]
[1723351988447,2.64188,2649.7,2649.5,2.4439]
[1723351993050,2.64188,2649.7,2649.3,2.4439]
[1723351993256,2.64171,2649.8,2649.3,2.4439]
[1723351993456,2.64187,2649.7,2649.3,2.4439]
[1723351994344,2.64194,2649.6,2649.3,2.4439]
[1723351994946,2.64201,2649.5,2649.3,2.4439]
[1723351996483,2.64187,2649.7,2649.3,2.4439]
[1723351996880,4.93704,2650.0,2649.3,2.4439]
[1723351997062,2.64201,2649.5,2649.3,2.4439]
[1723351997386,2.64191,2649.6,2649.3,2.4439]
[1723351997694,3.76391,2649.6,2649.3,2.4439]
[1723352000426,2.64166,2649.9,2649.5,2.4021]
[1723352000714,5.28335,2649.9,2649.5,2.4021]
[1723352000870,2.64166,2649.9,2649.5,2.4021]
[1723352001070,3.76366,2649.9,2649.5,2.4021]
[1723352001296,6.40535,2649.9,2649.5,2.4021]
[1723352001512,2.64172,2649.8,2649.5,2.4021]
[1723352005321,3.76366,2649.9,2649.5,2.4021]
[1723352005527,1.122,2649.9,2649.5,3.1539724]
[1723352005819,1.122,2649.9,2649.6,2.3789]
[1723352006001,3.76346,2650.1,2649.6,2.3789]
[1723352007120,3.76346,2650.1,2649.7,2.3789]
[1723352009344,1.122,2650.1,2649.7,2.3789]
[1723352009524,9.31324,2650.3,2649.8,2.64168]
[1723352009697,3.76324,2650.3,2649.9,2.3789]
[1723352009899,3.76302,2650.5,2650.0,2.3789]
[1723352010338,1.122,2650.5,2650.2,2.3789]
[1723352011249,3.76302,2650.5,2650.2,2.3789]
[1723352012106,1.122,2650.5,2650.2,2.3789]
[1723352013099,1.122,2650.5,2650.2,2.88847642]
[1723352015335,2.64065,2650.9,2650.3,0.07546093]
[1723352015540,4.122,2650.8,2650.3,2.71660093]
[1723352015725,4.122,2650.8,2650.4,2.3789]
[1723352017228,6.76278,2650.8,2650.4,2.3789]
[1723352017603,4.122,2650.8,2650.4,2.3789]
[1723352019320,4.122,2650.8,2650.4,2.93941184]
[1723352019836,1.122,2650.8,2650.4,2.93941184]
[1723352020239,1.122,2650.8,2650.5,2.4568]
[1723352020402,6.76253,2651.0,2650.5,2.53225188]
[1723352020607,4.122,2651.0,2650.5,3.10563125]
[1723352020809,4.122,2651.0,2650.5,0.64883125]
[1723352021045,3.0,2651.0,2650.6,2.4568]
[1723352021260,2.64026,2651.3,2650.7,2.71622989]
[1723352021407,1.122,2651.1,2650.8,2.97410299]
[1723352021818,1.122,2651.1,2650.8,3.04954463]
[1723352022020,1.122,2651.1,2650.8,2.97410299]
[1723352022348,3.7625,2651.1,2650.8,2.4568]
[1723352022577,1.122,2651.1,2650.8,2.4568]
[1723352022731,2.64051,2651.0,2650.8,2.4568]
[1723352023273,3.76243,2651.1,2650.8,2.4568]
[1723352025259,1.122,2650.9,2650.8,2.4568]
[1723352026029,1.122,2650.9,2650.6,2.2691]
[1723352026444,2.64075,2650.8,2650.6,2.2691]
[1723352026648,3.76261,2650.9,2650.6,2.2691]
[1723352027061,1.122,2650.9,2650.6,2.2691]
[1723352027257,3.76263,2650.9,2650.6,2.2691]
[1723352029662,0.1,2652.3,2650.6,2.2691]
[1723352029663,2.64044,2651.1,2650.6,2.49601]
[1723352029970,3.76244,2651.1,2650.6,2.49601]
[1723352030173,3.76244,2651.1,2650.6,2.2691]
[1723352032679,2.64066,2650.9,2650.6,2.2691]
[1723352032882,1.122,2651.1,2650.6,2.2691]
[1723352033083,2.64059,2651.0,2650.6,2.2691]
[1723352033957,1.122,2650.9,2650.6,2.2691]
[1723352034281,2.64077,2650.8,2650.6,2.2691]
[1723352034578,5.28154,2650.8,2650.6,2.2691]
[1723352034758,2.64077,2650.8,2650.6,2.2691]
[1723352035952,2.64081,2650.7,2650.6,2.2691]
[1723352040046,2.64077,2650.8,2650.6,2.2691]
[1723352044988,2.64028,2651.3,2650.7,2.4256]
[1723352045168,2.64038,2651.2,2650.7,2.4256]
[1723352046069,3.76228,2651.3,2650.7,2.4256]
[1723352046399,3.76228,2651.3,2650.7,3.219029]
[1723352046907,3.76228,2651.3,2650.7,5.859829]
[1723352049107,5.55,2651.4,2650.9,2.4256]
[1723352049308,17.21794,2651.7,2651.2,2.4256]
[1723352049309,20.37984,2651.7,2651.2,2.4256]
[1723352049613,21.50184,2651.7,2651.3,0.506599]
[1723352049906,3.76152,2652.0,2651.5,2.4256]
[1723352050865,2.63981,2651.7,2651.5,2.4256]
[1723352051070,3.76172,2651.8,2651.5,2.4256]
[1723352051071,6.40151,2651.8,2651.5,2.4256]
[1723352051297,3.76172,2651.8,2651.5,2.4256]
[1723352053881,2.63987,2651.7,2651.5,2.4256]
[1723352054592,3.76172,2651.8,2651.5,2.4256]
[1723352074576,3.76172,2651.8,2651.0,2.4336]
[1723352074577,2.64024,2651.3,2651.0,2.4336]
[1723352074877,3.76224,2651.3,2651.0,2.4336]
[1723352075951,2.64088,2650.7,2650.1,2.64134]
[1723352076132,1.122,2650.5,2650.2,2.4336]
[1723352076476,3.76288,2650.7,2650.2,2.4336]
[1723352085690,2.64088,2650.7,2650.2,2.4336]
[1723352086810,2.64088,2650.7,2650.2,2.50905828]
[1723352089469,1.122,2650.8,2650.3,0.07545828]
[1723352089813,1.122,2650.8,2650.4,2.4117]
[1723352091688,1.122,2650.8,2650.4,5.05279]
[1723352091908,1.122,2650.8,2650.4,2.4117]
[1723352095221,8.926224,2651.2,2650.7,2.4117]
[1723352095385,1.122,2650.9,2650.7,2.4117]
[1723352100252,1.122,2651.1,2650.7,2.4117]
[1723352100383,1.122,2651.1,2650.7,5.05249]
[1723352100828,1.122,2651.1,2650.7,2.4117]
[1723352101342,3.76241,2651.1,2650.7,2.4117]
[1723352109037,4.702676,2651.1,2650.7,2.4117]
[1723352109559,1.122,2650.9,2650.7,2.4117]
[1723352110770,2.64072,2650.8,2650.5,2.4036]
[1723352110925,1.122,2650.7,2650.5,2.4036]
[1723352111125,1.122,2650.7,2650.3,2.4036]
[1723352115343,3.76282,2650.7,2650.3,2.4036]
[1723352116417,2.64097,2650.6,2650.3,2.4036]
[1723352116586,1.122,2650.5,2650.0,5.00834]
[1723352116905,1.122,2650.5,2650.0,6.271649]
[1723352117623,1.122,2650.5,2650.0,8.913089]
[1723352117773,1.122,2650.5,2650.1,2.6414]
[1723352117976,1.122,2650.5,2650.1,3.06958724]
[1723352119011,2.64097,2650.6,2650.1,3.06958724]
[1723352119409,2.64097,2650.6,2650.1,0.42818724]
[1723352120715,1.122,2650.5,2650.0,2.3669]
[1723352120897,2.64126,2650.3,2650.0,2.3669]
[1723352122714,3.76308,2650.5,2650.0,2.3669]
[1723352123025,2.64096,2650.6,2650.1,0.07546737]
[1723352123786,2.64096,2650.6,2650.0,5.00835]
[1723352125121,2.64096,2650.6,2650.1,2.64138]
[1723352125431,2.64096,2650.6,2650.0,5.00835]
[1723352130849,5.28194,2650.6,2650.0,5.00835]
[1723352131011,2.64096,2650.6,2650.0,5.00835]
[1723352131847,3.76301,2650.5,2650.0,2.3669]
[1723352132317,2.3475,2650.4,2649.9,2.64159]
[1723352133218,2.3475,2650.4,2649.9,3.517645]
[1723352133421,1.122,2650.5,2650.0,2.6415]
[1723352133754,3.76301,2650.5,2650.1,2.3553]
[1723352134458,2.64111,2650.4,2649.8,2.3553]
[1723352136243,5.28229,2650.4,2649.8,2.3553]
[1723352136567,2.64111,2650.4,2649.8,2.3553]
[1723352137952,2.64111,2650.4,2649.8,4.99699]
[1723352138267,2.64111,2650.4,2649.8,5.760873]
[1723352140757,5.2823,2650.4,2649.8,5.760873]
[1723352140955,5.2823,2650.4,2649.8,4.99699]
[1723352141283,1.122,2650.3,2649.8,4.99699]
[1723352142853,1.122,2650.3,2649.8,4.99693]
[1723352143050,1.122,2650.3,2649.9,2.64154]
[1723352143292,1.122,2650.5,2649.9,3.405387]
[1723352144387,3.76307,2650.5,2649.9,3.405387]
[1723352146057,3.76307,2650.5,2649.9,0.763847]
[1723352146259,3.76307,2650.5,2649.8,4.99693]
[1723352146564,2.64111,2650.4,2649.8,4.99693]
[1723352147787,1.122,2650.3,2649.8,4.99693]
[1723352148351,3.76322,2650.3,2649.8,4.99693]
[1723352149590,3.76322,2650.3,2649.8,2.3553]
[1723352152289,6.4045,2650.3,2649.8,2.3553]
[1723352152496,3.76322,2650.3,2649.8,2.3553]
[1723352162987,2.64158,2650.0,2649.8,2.3553]
[1723352163580,2.64158,2650.0,2649.5,2.4332]
[1723352165004,2.64158,2650.0,2649.5,5.0752]
[1723352165711,2.64158,2650.0,2649.5,2.4332]
[1723352165917,0.376358,2649.9,2649.5,2.4332]
[1723352166121,1.122,2649.9,2649.5,2.4332]
[1723352166780,1.122,2649.9,2649.5,5.07519]
[1723352166991,1.122,2649.9,2649.5,2.4332]
[1723352173135,2.64158,2650.0,2649.5,2.4332]
[1723352173136,2.64158,2650.0,2649.5,5.0752]
[1723352173341,1.122,2650.1,2649.6,2.71737488]
[1723352173551,8.19113,2650.4,2649.9,2.6416]
[1723352173841,8.19113,2650.4,2649.8,2.64161]
[1723352173842,3.0,2650.3,2650.0,2.4332]
[1723352176326,1.122,2650.2,2650.0,2.4332]
[1723352176916,2.6414,2650.1,2649.7,2.3446]
[1723352177117,3.317726,2650.1,2649.7,2.3446]
[1723352177756,5.959216,2650.1,2649.7,2.3446]
[1723352178043,3.76352,2650.0,2649.7,2.3446]
[1723352178410,3.76351,2650.0,2649.2,4.98682]
[1723352178610,3.76351,2650.0,2649.2,5.83402]
[1723352179563,2.64173,2649.8,2649.2,8.47626]
[1723352179853,2.64173,2649.8,2649.2,5.83402]
[1723352181148,2.64182,2649.7,2649.2,4.98682]
[1723352181353,2.64173,2649.8,2649.2,4.98682]
[1723352182328,3.0,2650.3,2649.6,2.4032]
[1723352182620,1.122,2650.4,2649.9,2.64159]
[1723352182845,1.122,2650.4,2650.0,2.4032]
[1723352183552,1.122,2650.4,2650.0,5.12010349]
[1723352184152,3.76295,2650.6,2650.0,5.12010349]
[1723352184323,5.172814,2650.6,2650.0,5.04464]
[1723352185228,5.172814,2650.6,2650.0,5.12010349]
[1723352185555,5.172814,2650.6,2650.0,5.04464]
[1723352185882,2.64102,2650.5,2650.0,2.47866349]
[1723352186042,1.122,2650.4,2650.0,2.4032]
[1723352188061,1.122,2650.4,2650.1,2.64136]
[1723352188263,1.122,2650.4,2650.1,2.71682354]
[1723352188937,1.122,2650.4,2650.2,2.4032]
[1723352195635,3.0,2650.6,2650.2,5.04446]
[1723352195868,1.122,2650.5,2650.2,5.04446]
[1723352196232,1.122,2650.5,2650.0,2.4032]
[1723352196946,3.76302,2650.5,2650.0,2.4032]
[1723352197369,1.122,2650.5,2650.0,2.4032]
[1723352197676,3.76321,2650.3,2650.0,2.4032]
[1723352198473,5.64085,2650.7,2650.0,2.4032]
[1723352198771,1.122,2650.4,2650.0,2.4032]
[1723352200289,1.122,2650.4,2650.0,5.04464]
[1723352203354,1.122,2650.4,2650.1,2.6414]
[1723352203879,1.122,2650.4,2650.0,5.04464]
[1723352204090,1.122,2650.4,2650.0,7.68608]
[1723352204292,1.122,2650.4,2650.0,5.04464]
[1723352204596,8.28174,2650.7,2650.2,2.64122]
[1723352204597,3.0,2650.7,2650.2,2.64122]
[1723352204762,1.122,2650.5,2650.2,2.64122]
[1723352206878,1.122,2650.5,2650.1,2.3546]
[1723352207079,3.76305,2650.5,2650.1,2.3546]
[1723352207283,4.439355,2650.5,2650.1,2.3546]
[1723352211511,3.76329,2650.3,2649.7,2.3546]
[1723352212294,3.76329,2650.3,2649.7,7.63807]
[1723352212462,3.76329,2650.3,2649.7,4.99633]
[1723352213998,3.76329,2650.3,2649.7,2.3546]
[1723352213999,5.2566245,2650.3,2649.7,2.3546]
[1723352214206,3.76344,2650.1,2649.7,2.3546]
[1723352214405,1.122,2649.9,2649.5,4.99654]
[1723352216093,1.122,2649.9,2649.3,7.63888]
[1723352216473,1.122,2649.9,2649.3,4.99674]
[1723352216670,1.728621,2649.9,2649.3,4.99674]
[1723352217408,4.370301,2649.9,2649.3,4.99674]
[1723352219078,4.90822,2649.8,2649.3,2.3546]
[1723352219271,4.90822,2649.8,2649.1,7.556]
[1723352219672,2.64181,2649.7,2649.1,4.91365]
[1723352219884,1.122,2649.3,2648.9,2.2713]
[1723352220110,1.498411,2649.3,2648.9,4.91389]
[1723352220272,1.122,2649.3,2648.9,4.91389]
[1723352220475,1.122,2649.3,2648.9,2.2713]
[1723352220675,1.122,2649.1,2648.6,2.2713]
[1723352221295,1.122,2649.1,2648.6,4.91412]
[1723352222130,4.140846,2649.1,2648.6,2.2713]
[1723352222281,1.122,2648.9,2648.6,2.2713]
[1723352222486,4.140866,2649.1,2648.6,2.2713]
[1723352223330,3.5544526,2649.0,2648.3,4.96912]
[1723352224920,3.5544526,2649.0,2648.3,7.61226]
[1723352225124,3.5544526,2649.0,2648.3,4.96912]
[1723352225286,3.5544526,2649.0,2648.4,2.71859924]
[1723352226500,0.9119326,2649.0,2648.5,2.64299]
[1723352226695,4.140846,2649.1,2648.5,2.64299]
[1723352229945,1.122,2648.9,2648.3,4.96912]
[1723352230346,6.10071,2648.9,2648.3,4.96912]
[1723352230534,2.3361,2648.6,2648.1,2.64333]
[1723352230755,4.97872,2648.9,2648.2,2.71872216]
[1723352231050,1.122,2648.7,2648.3,2.64319]
[1723352233055,5.55,2649.0,2648.8,2.64263]
[1723352233211,5.55,2649.0,2647.7,2.64376]
[1723352233212,5.55,2649.0,2648.9,7.6112]
[1723352233415,1.122,2649.5,2648.9,4.9686]
[1723352233736,4.374065,2649.5,2648.9,4.9686]
[1723352234552,4.374065,2649.5,2648.9,2.326]
[1723352234755,1.122,2649.1,2648.7,4.96878]
[1723352234950,1.762652,2649.1,2648.7,4.96878]
[1723352235154,1.122,2649.1,2648.7,4.96878]
[1723352237769,1.122,2649.1,2648.6,2.6429]
[1723352238268,1.122,2648.9,2648.4,4.93755]
[1723352239969,2.4951,2649.0,2648.4,2.2945]
[1723352240265,1.386238,2649.1,2648.6,2.64288]
[1723352240472,1.386238,2649.1,2648.5,2.64293]
[1723352240766,6.672,2649.2,2648.7,2.64274]
[1723352241162,6.672,2649.2,2648.8,2.6427]
[1723352244442,1.122,2649.2,2648.8,2.6427]
[1723352245768,3.76432,2649.2,2648.6,4.93732]
[1723352245978,4.404968,2649.2,2648.6,4.93732]
[1723352246870,7.047368,2649.2,2648.6,4.93732]
[1723352247067,4.404968,2649.2,2648.6,4.93732]
[1723352247638,4.404968,2649.2,2648.6,7.58016]
[1723352249075,4.404968,2649.2,2648.7,2.64279]
[1723352250242,0.4404968,2649.1,2648.6,2.64284]
[1723352250475,0.4404968,2649.1,2648.4,2.64302]
[1723352250674,3.76432,2649.2,2648.4,2.64302]
[1723352250875,6.40669,2649.2,2648.6,2.64284]
[1723352251078,2.64243,2649.1,2648.6,2.64284]
[1723352251237,2.49,2648.9,2648.4,2.64302]
[1723352252673,5.13262,2648.9,2648.4,2.64302]
[1723352253372,5.13262,2648.9,2648.3,4.96619]
[1723352254747,2.49,2648.9,2648.3,4.96619]
[1723352257388,5.13261,2648.9,2648.3,4.96619]
[1723352257679,5.13261,2648.9,2648.3,5.839335]
[1723352258845,5.13261,2648.9,2648.3,4.96619]
[1723352259077,5.13261,2648.9,2648.3,2.64319]
[1723352261156,2.64274,2648.8,2648.3,2.64319]
[1723352265307,2.64296,2648.6,2648.1,2.2686]
[1723352265521,0.264296,2648.5,2648.0,2.6435]
[1723352265808,2.3131,2648.5,2648.0,2.6435]
[1723352266578,2.64324,2648.3,2647.6,2.6438]
[1723352266969,2.64324,2648.3,2647.7,2.64373]
[1723352268098,2.3131,2648.2,2647.7,2.64373]
[1723352268496,2.64347,2648.1,2647.4,5.28807]
[1723352268683,2.64347,2648.1,2647.4,2.64402]
[1723352269315,2.64347,2648.1,2647.4,5.28805]
[1723352269607,2.64347,2648.1,2647.5,2.64399]
[1723352271018,1.122,2648.0,2647.3,4.91274]
[1723352271191,3.76557,2648.0,2647.4,2.6441]
[1723352271387,3.76557,2648.0,2647.5,2.64397]
[1723352271590,2.3131,2648.1,2647.7,2.64374]
[1723352271801,4.95623,2648.4,2647.7,4.91234]
[1723352272313,4.95623,2648.4,2647.7,4.91233]
[1723352272613,6.119053,2648.4,2647.7,4.91233]
[1723352272783,6.119053,2648.4,2647.7,4.91232]
[1723352273510,6.119053,2648.4,2647.7,7.55605]
[1723352274413,2.64321,2648.3,2647.7,4.91232]
[1723352274600,4.1866363,2648.3,2647.7,4.91232]
[1723352275718,1.5434263,2648.3,2647.8,2.64366]
[1723352275912,6.07823,2648.4,2647.8,2.64366]
[1723352276620,3.4351,2648.4,2647.9,2.6435]
[1723352276777,2.64294,2648.6,2648.1,2.64334]
[1723352276778,3.5055,2648.6,2648.1,2.64334]
[1723352276972,1.122,2648.6,2648.1,2.64334]
[1723352277178,1.122,2648.6,2648.1,5.28667]
[1723352277395,1.122,2648.6,2648.1,3.40513914]
[1723352277910,1.122,2648.6,2648.1,6.04847914]
[1723352278118,5.55,2649.0,2648.2,2.2559]
[1723352278327,1.122,2649.0,2648.6,2.64284]
[1723352278482,1.122,2649.0,2648.5,2.64294]
[1723352278825,1.736785,2649.0,2648.6,2.64287]
[1723352278977,1.122,2649.0,2648.6,2.64283]
[1723352279190,2.3835,2649.1,2648.6,2.64282]
[1723352279524,2.886085,2649.1,2648.6,5.28565]
[1723352280124,1.122,2649.2,2648.6,4.89872]
[1723352280310,1.122,2649.2,2648.6,4.89875]
[1723352280822,6.4067,2649.2,2648.6,4.89875]
[1723352281030,3.76431,2649.2,2648.6,4.89875]
[1723352282889,1.122,2649.2,2648.6,4.89873]
[1723352283091,1.122,2649.2,2648.7,2.64279]
[1723352283290,1.122,2649.2,2648.5,0.07550406]
[1723352283291,2.64261,2648.9,2648.2,2.64321]
[1723352283490,2.64261,2648.9,2648.2,2.71872442]
[1723352284087,2.64261,2648.9,2648.3,2.64317]
[1723352284293,3.5245,2649.0,2648.5,2.64299]
[1723352284495,3.5245,2649.0,2648.5,5.39024039]
[1723352285241,1.122,2649.1,2648.7,2.64279]
[1723352285526,1.122,2649.1,2648.5,5.39024039]
[1723352285527,1.122,2649.1,2648.5,8.03316039]
[1723352285739,1.122,2649.1,2648.5,5.39017039]
[1723352286094,1.122,2649.1,2648.5,8.03310039]
[1723352286597,1.122,2649.1,2648.6,2.64289]
[1723352287541,2.64271,2648.8,2648.2,5.11863]
[1723352290028,2.64282,2648.7,2648.2,2.4754]
[1723352291299,2.64292,2648.6,2648.2,2.4754]
[1723352291635,5.04532,2648.7,2648.1,7.35]
[1723352292137,5.04532,2648.7,2648.0,6.24082]
[1723352292338,7.6882,2648.7,2648.0,6.24082]
[1723352292633,5.04532,2648.7,2648.0,8.88426]
[1723352292841,5.04532,2648.7,2648.0,6.24082]
[1723352293202,2.64291,2648.6,2648.0,6.24082]
[1723352293401,2.64291,2648.6,2648.0,7.129267]
[1723352293603,2.64291,2648.6,2648.0,9.772687]
[1723352294236,2.4025,2648.7,2648.2,2.64329]
[1723352294443,2.6427,2648.8,2648.2,5.28658]
[1723352294742,2.6427,2648.8,2648.2,6.08956924]
[1723352295041,2.6427,2648.8,2648.2,3.44627924]
[1723352295205,2.6427,2648.8,2648.2,6.08950924]
[1723352295606,2.6427,2648.8,2648.3,2.6432]
[1723352295806,2.6427,2648.8,2648.3,5.1186]
[1723352296024,2.64254,2649.0,2648.4,2.71859267]
[1723352296433,2.64254,2649.0,2648.4,5.36163267]
[1723352296841,2.64254,2649.0,2648.4,2.71855267]
[1723352297540,2.64254,2649.0,2648.4,2.64304]
[1723352297843,2.64254,2649.0,2648.4,2.71854722]
[1723352299372,2.64254,2649.0,2648.4,2.64304]
[1723352300023,3.523478,2649.0,2648.4,2.64304]
[1723352302118,6.166058,2649.0,2648.4,2.64304]
[1723352302421,3.523478,2649.0,2648.4,2.64304]
[1723352304549,3.523478,2649.0,2648.4,5.36157733]
[1723352304755,3.523478,2649.0,2648.4,2.71853733]
[1723352306349,3.523478,2649.0,2648.4,2.64303]
[1723352306515,3.523478,2649.0,2648.4,2.68297294]
[1723352306714,3.523478,2649.0,2648.4,2.71853735]
[1723352307145,3.523478,2649.0,2648.4,2.64303]
[1723352310250,0.7047978,2648.9,2648.4,2.64303]
[1723352310936,2.64272,2648.8,2648.3,2.4754]
[1723352313338,5.2855,2648.8,2648.3,2.4754]
[1723352313537,2.64272,2648.8,2648.3,2.4754]
[1723352315256,5.2855,2648.8,2648.3,2.4754]
[1723352315427,6.08482358,2648.8,2648.3,2.4754]
[1723352317773,2.64281,2648.7,2648.3,2.4754]
[1723352319227,2.64281,2648.7,2648.1,5.058]
[1723352322156,5.76174358,2648.8,2648.1,5.058]
[1723352322336,8.40452358,2648.8,2648.1,5.058]
[1723352322670,5.76174358,2648.8,2648.1,5.058]
[1723352323650,5.76174358,2648.8,2648.2,2.64329]
[1723352325372,8.40451358,2648.8,2648.2,2.64329]
[1723352325845,2.64281,2648.7,2648.2,2.64329]
[1723352326851,2.07465536,2648.7,2647.9,2.4146]
[1723352327174,1.122,2648.3,2647.7,2.4146]
[1723352327363,2.64336,2648.2,2647.7,2.4146]
[1723352327563,2.6434,2648.1,2647.7,2.4146]
[1723352331592,3.76525,2648.3,2647.7,2.4146]
[1723352331895,2.6433,2648.2,2647.7,2.4146]
[1723352332991,2.64316,2648.4,2647.9,2.4146]
[1723352333154,6.672,2648.5,2647.9,2.4146]
[1723352333352,6.76481,2648.7,2648.1,5.05794]
[1723352334892,6.76481,2648.7,2648.1,5.13345825]
[1723352335566,1.122,2648.7,2648.2,2.64321]
[1723352337958,2.64296,2648.6,2648.1,2.4146]
[1723352338162,3.319432,2648.6,2648.1,2.4146]
[1723352340396,5.962422,2648.6,2648.1,2.4146]
[1723352341890,8.401922,2648.6,2648.1,2.4146]
[1723352342291,0.676472,2648.6,2648.1,2.4146]
[1723352342463,1.122,2648.9,2648.4,5.0928]
[1723352342669,9.31446,2649.1,2648.4,7.73583]
[1723352342869,3.0,2649.0,2648.5,2.64298]
[1723352345068,5.6425,2649.0,2648.4,5.09273]
[1723352345468,3.0,2649.0,2648.5,2.64292]
[1723352347209,5.64256,2649.0,2648.4,5.09273]
[1723352347616,5.64256,2649.0,2648.5,2.64299]
[1723352349669,3.0,2649.0,2648.6,5.09259]
[1723352351916,4.122,2649.1,2648.7,2.64278]
[1723352352428,1.122,2649.4,2649.0,2.4497]
[1723352353514,1.742353,2649.4,2649.0,2.4497]
[1723352353732,4.384453,2649.4,2649.0,2.4497]
[1723352353868,2.64278,2648.8,2648.2,2.4497]
[1723352354076,3.76478,2648.8,2648.2,2.4497]
[1723352354294,4.405512,2648.8,2648.2,2.4497]